[Event "*** Titled Tuesday Blitz"]
[Site "Chess.com"]
[Date "2018.04.03"]
[Round "5"]
[White "JozefKneht"]
[Black "Arash_Tahbaz"]
[Result "1-0"]
[WhiteElo "2434"]
[BlackElo "2599"]
[TimeControl "180+2"]
[EndTime "14:04:05 PDT"]
[Termination "JozefKneht won by resignation"]

1. e4 {[%clk 0:02:01.9]} 1... d5 {[%clk 0:02:55.6]} 2. exd5 {[%clk 0:02:01.6]}
2... Qxd5 {[%clk 0:02:57.5]} 3. Nc3 {[%clk 0:02:01.5]} 3... Qa5 {[%clk
0:02:57.4]} 4. d4 {[%clk 0:02:03]} 4... Nf6 {[%clk 0:02:58.3]} 5. Nf3 {[%clk
0:02:03.9]} 5... c6 {[%clk 0:02:59]} 6. Bc4 {[%clk 0:02:04.6]} 6... Bf5 {[%clk
0:02:59.2]} 7. Ne5 {[%clk 0:02:05.8]} 7... e6 {[%clk 0:02:59.9]} 8. g4 {[%clk
0:02:07.1]} 8... Bg6 {[%clk 0:02:58.3]} 9. h4 {[%clk 0:02:08.1]} 9... Nbd7
{[%clk 0:02:59.2]} 10. Nxd7 {[%clk 0:02:09]} 10... Nxd7 {[%clk 0:02:54]} 11. h5
{[%clk 0:02:10]} 11... Be4 {[%clk 0:02:54.6]} 12. O-O {[%clk 0:02:11.4]} 12...
Bd5 {[%clk 0:02:50.9]} 13. Nxd5 {[%clk 0:02:12.8]} 13... cxd5 {[%clk 0:02:47.3]}
14. Bd3 {[%clk 0:02:14.7]} 14... g6 {[%clk 0:02:28.1]} 15. Bf4 {[%clk
0:01:58.8]} 15... Qb6 {[%clk 0:02:24.4]} 16. c3 {[%clk 0:01:52.6]} 16... Bd6
{[%clk 0:02:22.5]} 17. Qf3 {[%clk 0:01:38]} 17... Bxf4 {[%clk 0:02:13]} 18. Qxf4
{[%clk 0:01:38.4]} 18... Qxb2 {[%clk 0:02:13]} 19. Rab1 {[%clk 0:01:35.8]} 19...
Qxc3 {[%clk 0:02:13.7]} 20. Bb5 {[%clk 0:01:36.5]} 20... Rd8 {[%clk 0:01:39.2]}
21. Rfc1 {[%clk 0:01:29.9]} 21... Qa3 {[%clk 0:01:33.3]} 22. Bxd7+ {[%clk
0:01:23.9]} 22... Kf8 {[%clk 0:00:39]} 23. Qf6 {[%clk 0:01:18]} 23... Rxd7
{[%clk 0:00:31.4]} 24. Rc8+ {[%clk 0:01:15.8]} 1-0

[Event "*** Titled Tuesday Blitz"]
[Site "Chess.com"]
[Date "2018.04.03"]
[Round "5"]
[White "Koksik_13"]
[Black "bascheyaro"]
[Result "1-0"]
[WhiteElo "2482"]
[BlackElo "2598"]
[TimeControl "180+2"]
[EndTime "14:04:05 PDT"]
[Termination "Koksik_13 won by resignation"]

1. e4 {[%clk 0:03:01.9]} 1... e6 {[%clk 0:03:00.7]} 2. d4 {[%clk 0:03:02.5]}
2... d5 {[%clk 0:03:01.9]} 3. Nd2 {[%clk 0:03:03.8]} 3... c5 {[%clk 0:03:02.8]}
4. exd5 {[%clk 0:03:04.3]} 4... exd5 {[%clk 0:03:04.7]} 5. Ngf3 {[%clk
0:03:05.8]} 5... Nc6 {[%clk 0:03:06.1]} 6. Bb5 {[%clk 0:03:06.5]} 6... c4 {[%clk
0:03:07.5]} 7. O-O {[%clk 0:03:06.7]} 7... Bd6 {[%clk 0:03:09]} 8. b3 {[%clk
0:03:07.4]} 8... cxb3 {[%clk 0:03:10.9]} 9. axb3 {[%clk 0:03:08.5]} 9... Ne7
{[%clk 0:03:12.4]} 10. c4 {[%clk 0:03:09.6]} 10... O-O {[%clk 0:03:13.6]} 11.
Re1 {[%clk 0:03:07.9]} 11... a6 {[%clk 0:03:14.3]} 12. Bxc6 {[%clk 0:03:07.9]}
12... Nxc6 {[%clk 0:03:16.2]} 13. Nf1 {[%clk 0:03:08.1]} 13... Bg4 {[%clk
0:03:12.1]} 14. Be3 {[%clk 0:03:08.2]} 14... Re8 {[%clk 0:03:09.6]} 15. Ng3
{[%clk 0:02:59.6]} 15... Bb4 {[%clk 0:03:09.2]} 16. Rf1 {[%clk 0:02:57.2]} 16...
dxc4 {[%clk 0:02:54.5]} 17. bxc4 {[%clk 0:02:57.8]} 17... Bc3 {[%clk 0:02:55.6]}
18. Ra3 {[%clk 0:02:56.8]} 18... Bxf3 {[%clk 0:02:56.1]} 19. Qxf3 {[%clk
0:02:53.8]} 19... Bxd4 {[%clk 0:02:57]} 20. Rd1 {[%clk 0:02:47.9]} 20... Qe7
{[%clk 0:02:53.9]} 21. Bxd4 {[%clk 0:02:46.3]} 21... Nxd4 {[%clk 0:02:54.3]} 22.
Rxd4 {[%clk 0:02:46.4]} 22... Qb4 {[%clk 0:02:28.6]} 23. Ra1 {[%clk 0:02:42.1]}
23... a5 {[%clk 0:02:29.7]} 24. h3 {[%clk 0:02:41.9]} 24... a4 {[%clk
0:02:30.9]} 25. Nf5 {[%clk 0:02:37.9]} 25... Re1+ {[%clk 0:02:24.2]} 26. Kh2
{[%clk 0:01:56.2]} 26... Rxa1 {[%clk 0:02:22.9]} 27. Rd7 {[%clk 0:01:47.4]}
27... Rf8 {[%clk 0:02:05.5]} 28. Qg4 {[%clk 0:01:36.2]} 28... g6 {[%clk
0:01:46.6]} 29. Ne7+ {[%clk 0:01:34.7]} 29... Kh8 {[%clk 0:01:17]} 30. Qd4+
{[%clk 0:01:12.4]} 30... f6 {[%clk 0:01:18.2]} 31. Nxg6+ {[%clk 0:01:11.5]}
31... Kg8 {[%clk 0:01:19.6]} 32. Qd5+ {[%clk 0:01:08]} 1-0

[Event "*** Titled Tuesday Blitz"]
[Site "Chess.com"]
[Date "2018.04.03"]
[Round "5"]
[White "Sanan_Sjugirov"]
[Black "Batica1984"]
[Result "0-1"]
[WhiteElo "2836"]
[BlackElo "2638"]
[TimeControl "180+2"]
[EndTime "14:04:09 PDT"]
[Termination "Batica1984 won by resignation"]

1. e4 {[%clk 0:03:01.9]} 1... c5 {[%clk 0:03:00.4]} 2. Nf3 {[%clk 0:03:02.7]}
2... Nc6 {[%clk 0:03:00.5]} 3. Bb5 {[%clk 0:03:02.8]} 3... d6 {[%clk 0:02:59.3]}
4. O-O {[%clk 0:03:02.7]} 4... Bd7 {[%clk 0:02:59.7]} 5. Re1 {[%clk 0:03:03.8]}
5... Nf6 {[%clk 0:02:59.9]} 6. c3 {[%clk 0:03:04.4]} 6... a6 {[%clk 0:03:00.7]}
7. Bc4 {[%clk 0:03:05.5]} 7... Bg4 {[%clk 0:02:57.5]} 8. d4 {[%clk 0:03:02.3]}
8... Bxf3 {[%clk 0:02:54]} 9. gxf3 {[%clk 0:03:01.4]} 9... e6 {[%clk 0:02:54.3]}
10. f4 {[%clk 0:02:24]} 10... cxd4 {[%clk 0:02:10.9]} 11. cxd4 {[%clk
0:02:24.5]} 11... d5 {[%clk 0:02:12]} 12. exd5 {[%clk 0:02:22.7]} 12... Nxd5
{[%clk 0:02:12.8]} 13. f5 {[%clk 0:02:07.9]} 13... Bb4 {[%clk 0:02:13.1]} 14.
fxe6 {[%clk 0:02:05.4]} 14... Bxe1 {[%clk 0:01:54.4]} 15. exf7+ {[%clk
0:02:05.9]} 15... Kf8 {[%clk 0:01:45.7]} 16. Qxe1 {[%clk 0:02:05.8]} 16... b5
{[%clk 0:01:45.7]} 17. Bb3 {[%clk 0:01:15.3]} 17... Nxd4 {[%clk 0:01:45.7]} 18.
Qe4 {[%clk 0:01:07.6]} 18... Nf6 {[%clk 0:01:36.5]} 19. Qd3 {[%clk 0:00:34.5]}
19... Nxb3 {[%clk 0:01:33.2]} 20. Qxb3 {[%clk 0:00:36.4]} 20... Qd5 {[%clk
0:01:32.9]} 21. Qb4+ {[%clk 0:00:36.5]} 21... Kxf7 {[%clk 0:01:32.8]} 22. Nc3
{[%clk 0:00:38.1]} 22... Qc4 {[%clk 0:01:31.2]} 23. Qd6 {[%clk 0:00:30.8]} 23...
b4 {[%clk 0:01:20.2]} 0-1

[Event "*** Titled Tuesday Blitz"]
[Site "Chess.com"]
[Date "2018.04.03"]
[Round "5"]
[White "Slovak_fighter2000"]
[Black "BKMZBKMZ"]
[Result "1/2-1/2"]
[WhiteElo "2366"]
[BlackElo "2582"]
[TimeControl "180+2"]
[EndTime "14:04:28 PDT"]
[Termination "Game drawn by agreement"]

1. d4 {[%clk 0:03:01.9]} 1... Nf6 {[%clk 0:02:57.9]} 2. Bf4 {[%clk 0:03:02.1]}
2... g6 {[%clk 0:02:57.8]} 3. Nc3 {[%clk 0:02:55.6]} 3... Bg7 {[%clk 0:02:59.7]}
4. e4 {[%clk 0:02:56]} 4... d6 {[%clk 0:03:00.3]} 5. Qd2 {[%clk 0:02:56.4]} 5...
c6 {[%clk 0:02:56.5]} 6. Nf3 {[%clk 0:02:52]} 6... b5 {[%clk 0:02:48.9]} 7. a3
{[%clk 0:02:51.6]} 7... Nbd7 {[%clk 0:02:46.1]} 8. Be2 {[%clk 0:02:50.9]} 8...
O-O {[%clk 0:02:45.4]} 9. e5 {[%clk 0:02:50]} 9... Ne8 {[%clk 0:02:42.2]} 10.
exd6 {[%clk 0:02:48.2]} 10... Nxd6 {[%clk 0:02:39.5]} 11. Bh6 {[%clk 0:02:47.7]}
11... Bxh6 {[%clk 0:02:37.6]} 12. Qxh6 {[%clk 0:02:47.9]} 12... Nf5 {[%clk
0:02:39.5]} 13. Qd2 {[%clk 0:02:45.3]} 13... Nf6 {[%clk 0:02:40.4]} 14. O-O
{[%clk 0:02:39.2]} 14... a5 {[%clk 0:02:25.7]} 15. Rfd1 {[%clk 0:02:31.6]} 15...
Bb7 {[%clk 0:02:23.3]} 16. Qf4 {[%clk 0:02:10.1]} 16... Qd6 {[%clk 0:01:48.1]}
17. Qxd6 {[%clk 0:02:08.3]} 17... Nxd6 {[%clk 0:01:38.8]} 18. Ne5 {[%clk
0:02:04.9]} 18... Rfd8 {[%clk 0:01:32.6]} 19. Bf3 {[%clk 0:02:03.7]} 19... Nd5
{[%clk 0:01:31.8]} 20. Nxc6 {[%clk 0:01:43.2]} 20... Nxc3 {[%clk 0:01:32.4]} 21.
bxc3 {[%clk 0:01:41]} 21... Bxc6 {[%clk 0:01:32.9]} 22. Bxc6 {[%clk 0:01:40.9]}
22... Rac8 {[%clk 0:01:33.6]} 23. d5 {[%clk 0:01:42.1]} 23... e6 {[%clk
0:01:31.3]} 24. a4 {[%clk 0:01:40.2]} 24... bxa4 {[%clk 0:01:30.1]} 25. Rxa4
{[%clk 0:01:35.3]} 25... exd5 {[%clk 0:01:31.1]} 26. Bxd5 {[%clk 0:01:35]} 26...
Nb5 {[%clk 0:01:26.5]} 27. Rd3 {[%clk 0:01:15.1]} 27... Nxc3 {[%clk 0:01:20.3]}
28. Rxa5 {[%clk 0:01:13.2]} 28... Ne2+ {[%clk 0:01:13.7]} 29. Kf1 {[%clk
0:01:09.2]} 29... Nf4 {[%clk 0:01:11.6]} 30. Rd2 {[%clk 0:01:05]} 30... Nxd5
{[%clk 0:01:06.2]} 31. Raxd5 {[%clk 0:01:05.3]} 31... Rxd5 {[%clk 0:01:08.1]}
32. Rxd5 {[%clk 0:01:06.4]} 32... Rxc2 {[%clk 0:01:10]} 33. g3 {[%clk
0:01:06.8]} 33... Kg7 {[%clk 0:01:10.8]} 34. Kg2 {[%clk 0:01:06.6]} 1/2-1/2

[Event "*** Titled Tuesday Blitz"]
[Site "Chess.com"]
[Date "2018.04.03"]
[Round "5"]
[White "gkchesstiger"]
[Black "Fins0905"]
[Result "1-0"]
[WhiteElo "2757"]
[BlackElo "2589"]
[TimeControl "180+2"]
[EndTime "14:05:07 PDT"]
[Termination "gkchesstiger won by resignation"]

1. d4 {[%clk 0:03:01.9]} 1... d5 {[%clk 0:02:57]} 2. Nf3 {[%clk 0:03:02.3]} 2...
Nf6 {[%clk 0:02:56.7]} 3. Bf4 {[%clk 0:03:03.3]} 3... c5 {[%clk 0:02:57.4]} 4.
e3 {[%clk 0:03:04.1]} 4... cxd4 {[%clk 0:02:58.4]} 5. exd4 {[%clk 0:03:04.8]}
5... Nc6 {[%clk 0:02:58.6]} 6. c3 {[%clk 0:03:05]} 6... Bf5 {[%clk 0:02:59]} 7.
Qb3 {[%clk 0:02:56.8]} 7... Qc8 {[%clk 0:02:55.6]} 8. Nbd2 {[%clk 0:02:54.6]}
8... e6 {[%clk 0:02:55.2]} 9. Nh4 {[%clk 0:02:52.9]} 9... Be4 {[%clk 0:02:54.7]}
10. Nxe4 {[%clk 0:02:53.2]} 10... Nxe4 {[%clk 0:02:55.6]} 11. Nf3 {[%clk
0:02:52.4]} 11... Bd6 {[%clk 0:02:55.8]} 12. Bxd6 {[%clk 0:02:53.2]} 12... Nxd6
{[%clk 0:02:57.7]} 13. Bd3 {[%clk 0:02:54.3]} 13... O-O {[%clk 0:02:55.1]} 14.
a4 {[%clk 0:02:54.6]} 14... Qc7 {[%clk 0:02:51.3]} 15. Qc2 {[%clk 0:02:54.9]}
15... h6 {[%clk 0:02:42]} 16. O-O {[%clk 0:02:55.8]} 16... Rfc8 {[%clk
0:02:38.6]} 17. Qe2 {[%clk 0:02:56.1]} 17... a6 {[%clk 0:02:35.6]} 18. h4 {[%clk
0:02:52]} 18... Rab8 {[%clk 0:02:30.6]} 19. Rae1 {[%clk 0:02:49.4]} 19... b5
{[%clk 0:02:25.7]} 20. axb5 {[%clk 0:02:50]} 20... axb5 {[%clk 0:02:25.8]} 21.
Ne5 {[%clk 0:02:32.8]} 21... b4 {[%clk 0:02:05.7]} 22. f4 {[%clk 0:02:33.2]}
22... bxc3 {[%clk 0:02:02]} 23. bxc3 {[%clk 0:02:33.7]} 23... Nxe5 {[%clk
0:00:54]} 24. fxe5 {[%clk 0:02:34.2]} 24... Ne4 {[%clk 0:00:55.5]} 25. Bxe4
{[%clk 0:02:15.3]} 25... dxe4 {[%clk 0:00:57.4]} 26. Qxe4 {[%clk 0:02:11.7]}
26... Qxc3 {[%clk 0:00:57.5]} 27. Rf3 {[%clk 0:02:09.3]} 27... Qd2 {[%clk
0:00:49.4]} 28. Rf2 {[%clk 0:02:03.8]} 28... Qc3 {[%clk 0:00:43.6]} 29. Re3
{[%clk 0:01:55.3]} 29... Qc1+ {[%clk 0:00:37.4]} 30. Rf1 {[%clk 0:01:53.3]}
30... Qc2 {[%clk 0:00:33.7]} 31. Qf4 {[%clk 0:01:51.2]} 31... Rf8 {[%clk
0:00:26.4]} 32. Rg3 {[%clk 0:01:50.3]} 32... Kh8 {[%clk 0:00:25.3]} 33. Qg4
{[%clk 0:01:46]} 33... Qh7 {[%clk 0:00:23.4]} 34. Rgf3 {[%clk 0:01:45.3]} 34...
Kg8 {[%clk 0:00:23.3]} 35. d5 {[%clk 0:01:43.7]} 35... exd5 {[%clk 0:00:17.6]}
36. e6 {[%clk 0:01:44.8]} 36... f6 {[%clk 0:00:17.6]} 37. e7 {[%clk 0:01:43]}
37... Rf7 {[%clk 0:00:15]} 38. Re1 {[%clk 0:01:35.9]} 38... Re8 {[%clk
0:00:04.9]} 39. Qd7 {[%clk 0:01:36.3]} 1-0

[Event "*** Titled Tuesday Blitz"]
[Site "Chess.com"]
[Date "2018.04.03"]
[Round "5"]
[White "Federer999"]
[Black "Keaton87"]
[Result "1-0"]
[WhiteElo "2702"]
[BlackElo "2458"]
[TimeControl "180+2"]
[EndTime "14:05:08 PDT"]
[Termination "Federer999 won by resignation"]

1. Nf3 {[%clk 0:03:00.9]} 1... g6 {[%clk 0:02:59]} 2. c4 {[%clk 0:03:01.5]} 2...
Bg7 {[%clk 0:02:59.8]} 3. d4 {[%clk 0:02:59.5]} 3... Nf6 {[%clk 0:03:00]} 4. Nc3
{[%clk 0:02:59.8]} 4... O-O {[%clk 0:03:00.7]} 5. e4 {[%clk 0:02:57.9]} 5... d6
{[%clk 0:02:56.7]} 6. h3 {[%clk 0:02:58.1]} 6... e5 {[%clk 0:02:56.3]} 7. d5
{[%clk 0:02:57.6]} 7... Nh5 {[%clk 0:02:54.5]} 8. g3 {[%clk 0:02:57.3]} 8... Qe8
{[%clk 0:02:54.1]} 9. Be2 {[%clk 0:02:53.3]} 9... f5 {[%clk 0:02:55.1]} 10. exf5
{[%clk 0:02:49.5]} 10... gxf5 {[%clk 0:02:54.5]} 11. Nh4 {[%clk 0:02:50.6]}
11... Nf6 {[%clk 0:02:54.6]} 12. a3 {[%clk 0:02:48.8]} 12... a5 {[%clk 0:02:52]}
13. Qc2 {[%clk 0:02:45.6]} 13... e4 {[%clk 0:02:37.7]} 14. Be3 {[%clk
0:02:41.4]} 14... Na6 {[%clk 0:02:38.3]} 15. Ng2 {[%clk 0:02:41.7]} 15... Nc5
{[%clk 0:02:38.7]} 16. O-O-O {[%clk 0:02:34.3]} 16... a4 {[%clk 0:02:39.3]} 17.
Nf4 {[%clk 0:02:31.5]} 17... Nb3+ {[%clk 0:02:33.3]} 18. Kb1 {[%clk 0:02:31.3]}
18... Qe5 {[%clk 0:02:34.9]} 19. Nxa4 {[%clk 0:02:22]} 19... Bd7 {[%clk
0:02:01.3]} 20. Nc3 {[%clk 0:02:21.2]} 20... Nc5 {[%clk 0:02:01.6]} 21. Bd4
{[%clk 0:02:16.2]} 21... Qe7 {[%clk 0:02:01.3]} 22. Rhg1 {[%clk 0:02:17.3]}
22... c6 {[%clk 0:01:33.5]} 23. g4 {[%clk 0:02:03.5]} 23... fxg4 {[%clk
0:01:33.9]} 24. hxg4 {[%clk 0:02:03.7]} 24... cxd5 {[%clk 0:01:32.2]} 25. g5
{[%clk 0:02:01]} 25... Ne8 {[%clk 0:01:26.6]} 26. Ncxd5 {[%clk 0:01:56.7]} 26...
Qd8 {[%clk 0:01:22.3]} 27. Bxg7 {[%clk 0:01:52.4]} 27... Nxg7 {[%clk 0:01:16.3]}
28. Nf6+ {[%clk 0:01:53.2]} 28... Kh8 {[%clk 0:01:16.1]} 29. Ng6+ {[%clk
0:01:45.5]} 29... hxg6 {[%clk 0:01:15.3]} 30. Rh1+ {[%clk 0:01:45.9]} 30... Nh5
{[%clk 0:01:14.7]} 31. Bxh5 {[%clk 0:01:33.8]} 31... gxh5 {[%clk 0:01:01.5]} 32.
Qc3 {[%clk 0:01:21.2]} 32... Qa5 {[%clk 0:00:53.7]} 33. Rxh5+ {[%clk 0:01:15.1]}
33... Kg7 {[%clk 0:00:54.2]} 34. Ne8+ {[%clk 0:01:15.8]} 34... Kf7 {[%clk
0:00:55.2]} 35. Nxd6+ {[%clk 0:01:05.2]} 35... Ke7 {[%clk 0:00:56.2]} 36. Qg7+
{[%clk 0:01:05.9]} 36... Ke6 {[%clk 0:00:46.3]} 37. Rh6+ {[%clk 0:01:03.4]} 1-0

[Event "*** Titled Tuesday Blitz"]
[Site "Chess.com"]
[Date "2018.04.03"]
[Round "5"]
[White "pedromartinez91"]
[Black "Hrant_ChessMood"]
[Result "0-1"]
[WhiteElo "2372"]
[BlackElo "2921"]
[TimeControl "180+2"]
[EndTime "14:05:18 PDT"]
[Termination "Hrant_ChessMood won by resignation"]

1. d4 {[%clk 0:03:01.9]} 1... Nf6 {[%clk 0:03:00.6]} 2. c4 {[%clk 0:03:01.1]}
2... g6 {[%clk 0:03:01.7]} 3. g3 {[%clk 0:03:01.4]} 3... Bg7 {[%clk 0:03:02.8]}
4. Bg2 {[%clk 0:03:02.8]} 4... O-O {[%clk 0:03:03.4]} 5. Nc3 {[%clk 0:03:03.4]}
5... c5 {[%clk 0:02:59.1]} 6. Nf3 {[%clk 0:03:01]} 6... cxd4 {[%clk 0:02:55.5]}
7. Nxd4 {[%clk 0:03:01.4]} 7... Nc6 {[%clk 0:02:56]} 8. O-O {[%clk 0:03:00.9]}
8... d6 {[%clk 0:02:56.4]} 9. Nc2 {[%clk 0:02:46.9]} 9... Be6 {[%clk 0:02:57]}
10. b3 {[%clk 0:02:44]} 10... Qa5 {[%clk 0:02:57]} 11. Bd2 {[%clk 0:02:43.6]}
11... Rfc8 {[%clk 0:02:57.9]} 12. Ne3 {[%clk 0:02:35.6]} 12... Qh5 {[%clk
0:02:50.2]} 13. Rc1 {[%clk 0:02:32]} 13... Ng4 {[%clk 0:02:49.2]} 14. Nxg4
{[%clk 0:02:32.2]} 14... Bxg4 {[%clk 0:02:49.4]} 15. f3 {[%clk 0:02:07.8]} 15...
Be6 {[%clk 0:02:35.6]} 16. e3 {[%clk 0:02:03]} 16... a6 {[%clk 0:02:32.5]} 17.
a4 {[%clk 0:01:21.4]} 17... Rab8 {[%clk 0:02:28.3]} 18. Qe2 {[%clk 0:01:21.5]}
18... Qc5 {[%clk 0:02:25]} 19. Kh1 {[%clk 0:01:13.4]} 19... Qb6 {[%clk
0:02:25.7]} 20. Rb1 {[%clk 0:01:12.8]} 20... Nb4 {[%clk 0:02:09.8]} 21. f4
{[%clk 0:01:10.9]} 21... Qd8 {[%clk 0:02:03.3]} 22. e4 {[%clk 0:01:08.2]} 22...
Bd7 {[%clk 0:01:57.6]} 23. Nd5 {[%clk 0:01:07.8]} 23... Nxd5 {[%clk 0:01:55.5]}
24. exd5 {[%clk 0:01:08.5]} 24... b5 {[%clk 0:01:54.7]} 25. cxb5 {[%clk
0:01:03.3]} 25... axb5 {[%clk 0:01:56.6]} 26. a5 {[%clk 0:01:04.8]} 26... b4
{[%clk 0:01:58.1]} 27. Rfe1 {[%clk 0:01:04.5]} 27... Bc3 {[%clk 0:01:50.8]} 28.
a6 {[%clk 0:00:47.4]} 28... Bb5 {[%clk 0:01:48.2]} 29. Qe3 {[%clk 0:00:37.9]}
29... Bxa6 {[%clk 0:01:48.1]} 30. Rbc1 {[%clk 0:00:33.7]} 30... Qc7 {[%clk
0:01:37.5]} 31. Bxc3 {[%clk 0:00:17.5]} 31... bxc3 {[%clk 0:01:37.9]} 32. Qxe7
{[%clk 0:00:18.3]} 32... Qxe7 {[%clk 0:01:38.4]} 33. Rxe7 {[%clk 0:00:19.4]}
33... c2 {[%clk 0:01:37.1]} 34. Be4 {[%clk 0:00:19.4]} 34... Rxb3 {[%clk
0:01:19.9]} 35. Rxc2 {[%clk 0:00:20]} 35... Rb1+ {[%clk 0:01:21]} 36. Kg2 {[%clk
0:00:19.8]} 36... Rxc2+ {[%clk 0:01:21.8]} 37. Bxc2 {[%clk 0:00:19.5]} 37... Rb2
{[%clk 0:01:23.7]} 38. Rc7 {[%clk 0:00:15.7]} 38... Bd3 {[%clk 0:01:24.4]} 0-1

[Event "*** Titled Tuesday Blitz"]
[Site "Chess.com"]
[Date "2018.04.03"]
[Round "5"]
[White "julinha97"]
[Black "matiss90"]
[Result "0-1"]
[WhiteElo "2221"]
[BlackElo "2362"]
[TimeControl "180+2"]
[EndTime "14:05:24 PDT"]
[Termination "matiss90 won by checkmate"]

1. e4 {[%clk 0:03:01.9]} 1... c5 {[%clk 0:02:58.8]} 2. Nf3 {[%clk 0:03:02.8]}
2... d6 {[%clk 0:02:59.8]} 3. d4 {[%clk 0:03:03.5]} 3... cxd4 {[%clk 0:03:01.7]}
4. Nxd4 {[%clk 0:03:04.9]} 4... Nf6 {[%clk 0:03:03.1]} 5. Nc3 {[%clk 0:03:05.9]}
5... g6 {[%clk 0:03:05]} 6. Be3 {[%clk 0:03:06.5]} 6... Bg7 {[%clk 0:03:05.9]}
7. f3 {[%clk 0:03:05.7]} 7... O-O {[%clk 0:03:07.1]} 8. Qd2 {[%clk 0:03:06.4]}
8... Nc6 {[%clk 0:03:08.4]} 9. O-O-O {[%clk 0:03:07.3]} 9... Nxd4 {[%clk
0:03:08.9]} 10. Bxd4 {[%clk 0:03:04.7]} 10... Be6 {[%clk 0:03:09.5]} 11. Kb1
{[%clk 0:03:03.7]} 11... a6 {[%clk 0:03:06.4]} 12. h4 {[%clk 0:03:02.7]} 12...
h5 {[%clk 0:03:05.6]} 13. g4 {[%clk 0:02:56.3]} 13... hxg4 {[%clk 0:02:39.7]}
14. h5 {[%clk 0:02:48.8]} 14... Nxh5 {[%clk 0:02:33.4]} 15. fxg4 {[%clk
0:02:23.4]} 15... Bxg4 {[%clk 0:02:31.1]} 16. Be2 {[%clk 0:02:14.4]} 16... Bxe2
{[%clk 0:02:30.9]} 17. Nxe2 {[%clk 0:02:07.9]} 17... e5 {[%clk 0:02:30.1]} 18.
Be3 {[%clk 0:02:07.8]} 18... d5 {[%clk 0:02:07.1]} 19. exd5 {[%clk 0:02:00]}
19... Rc8 {[%clk 0:01:49.9]} 20. Rdg1 {[%clk 0:01:57.3]} 20... Nf4 {[%clk
0:01:43.5]} 21. Nxf4 {[%clk 0:01:48.2]} 21... exf4 {[%clk 0:01:44.6]} 22. Qh2
{[%clk 0:01:24.1]} 22... Re8 {[%clk 0:01:37.5]} 23. Qh7+ {[%clk 0:01:15.8]}
23... Kf8 {[%clk 0:01:37.5]} 24. Bxf4 {[%clk 0:01:10.1]} 24... Qf6 {[%clk
0:01:05.1]} 25. Bc1 {[%clk 0:01:00.1]} 25... Rxc2 {[%clk 0:00:52.1]} 26. Kxc2
{[%clk 0:00:54.1]} 26... Qf5+ {[%clk 0:00:52.5]} 27. Kd1 {[%clk 0:00:40.9]}
27... Qf3+ {[%clk 0:00:22.5]} 28. Kc2 {[%clk 0:00:34.4]} 28... Qe4+ {[%clk
0:00:23.5]} 29. Kd1 {[%clk 0:00:33.5]} 29... Qe2# {[%clk 0:00:23.7]} 0-1

[Event "*** Titled Tuesday Blitz"]
[Site "Chess.com"]
[Date "2018.04.03"]
[Round "5"]
[White "PowerThinking2650"]
[Black "XiaoKangZhong"]
[Result "1-0"]
[WhiteElo "2228"]
[BlackElo "2019"]
[TimeControl "180+2"]
[EndTime "14:05:30 PDT"]
[Termination "PowerThinking2650 won by resignation"]

1. e4 {[%clk 0:03:01.9]} 1... c5 {[%clk 0:02:59.5]} 2. Nf3 {[%clk 0:03:02.5]}
2... e6 {[%clk 0:02:59.2]} 3. d4 {[%clk 0:03:03.1]} 3... cxd4 {[%clk 0:03:01.1]}
4. Nxd4 {[%clk 0:03:04.6]} 4... Nc6 {[%clk 0:03:02.3]} 5. Nb5 {[%clk 0:03:04.9]}
5... d6 {[%clk 0:03:01.9]} 6. c4 {[%clk 0:03:06]} 6... a6 {[%clk 0:03:02.4]} 7.
N5a3 {[%clk 0:03:06.9]} 7... Be7 {[%clk 0:03:02.7]} 8. Nc3 {[%clk 0:03:07.3]}
8... Nf6 {[%clk 0:03:02.6]} 9. Be2 {[%clk 0:03:07.2]} 9... O-O {[%clk
0:03:00.5]} 10. O-O {[%clk 0:03:07.4]} 10... Qc7 {[%clk 0:02:56.6]} 11. Be3
{[%clk 0:03:02.6]} 11... Rd8 {[%clk 0:02:45.1]} 12. Rc1 {[%clk 0:03:02.1]} 12...
Bd7 {[%clk 0:02:39.5]} 13. Nd5 {[%clk 0:03:00.8]} 13... Qb8 {[%clk 0:02:22.3]}
14. Nxe7+ {[%clk 0:02:55.5]} 14... Nxe7 {[%clk 0:02:24.2]} 15. Bb6 {[%clk
0:02:54.9]} 15... Rc8 {[%clk 0:02:24.2]} 16. f3 {[%clk 0:02:54.6]} 16... Rc6
{[%clk 0:02:23.9]} 17. Bd4 {[%clk 0:02:42.6]} 17... Ne8 {[%clk 0:02:15.8]} 18.
Qd2 {[%clk 0:02:42.4]} 18... b5 {[%clk 0:02:13.6]} 19. cxb5 {[%clk 0:02:34.3]}
19... Rxc1 {[%clk 0:02:13.4]} 20. Rxc1 {[%clk 0:02:33.7]} 20... axb5 {[%clk
0:02:14.2]} 21. Nc2 {[%clk 0:02:22.8]} 21... Rxa2 {[%clk 0:02:04.4]} 22. Nb4
{[%clk 0:02:23.6]} 22... Ra8 {[%clk 0:01:58.6]} 23. h4 {[%clk 0:02:21.6]} 23...
h6 {[%clk 0:01:54.9]} 24. Be3 {[%clk 0:02:14.2]} 24... Ra4 {[%clk 0:01:29.4]}
25. b3 {[%clk 0:02:09.9]} 25... Ra3 {[%clk 0:01:25.6]} 26. Qb2 {[%clk
0:02:09.5]} 26... Ra8 {[%clk 0:01:23.9]} 27. Bd4 {[%clk 0:02:09.6]} 27... e5
{[%clk 0:01:21.9]} 28. Be3 {[%clk 0:02:10.3]} 28... Be6 {[%clk 0:01:21.2]} 29.
g4 {[%clk 0:01:59.3]} 29... Qb7 {[%clk 0:01:10.5]} 30. g5 {[%clk 0:01:58.7]}
30... hxg5 {[%clk 0:01:10.5]} 31. hxg5 {[%clk 0:01:58.9]} 31... g6 {[%clk
0:01:10]} 32. Kf2 {[%clk 0:01:49.2]} 32... Nc7 {[%clk 0:01:05.8]} 33. Rh1 {[%clk
0:01:43.4]} 33... Kg7 {[%clk 0:00:57]} 34. Nd3 {[%clk 0:01:36.1]} 34... Na6
{[%clk 0:00:50.7]} 35. Nxe5 {[%clk 0:01:33.5]} 35... dxe5 {[%clk 0:00:28.2]} 36.
Qxe5+ {[%clk 0:01:33.4]} 36... Kf8 {[%clk 0:00:28.9]} 37. Rh8+ {[%clk
0:01:31.8]} 37... Ng8 {[%clk 0:00:29.7]} 38. Bxb5 {[%clk 0:01:15.7]} 38... Ke7
{[%clk 0:00:25.2]} 39. Bc5+ {[%clk 0:01:03.5]} 39... Nxc5 {[%clk 0:00:25.4]} 40.
Qxc5+ {[%clk 0:01:04.6]} 1-0